lending/lending_fUSD_20240522
["ID","MTS","AMOUNT","RATE_DAILY","PERIOD"]
[327712955,1716355886377,5317.3740176,0.00012991,2]
[327712956,1716355903902,1742.016613,0.00012935,2]
[327712957,1716355912111,155.15216631,0.00012999,2]
[327712958,1716355913707,318.0038559,0.00012991,2]
[327712959,1716355919937,51113.23742362,0.00012999,2]
[327712960,1716355920010,381.23286506,0.00012999,2]
[327712962,1716355947326,2605.38794838,0.00012739,2]
[327712963,1716355969324,2392.69184324,0.00012739,2]
[327712964,1716355976329,643.77664,0.0001293,2]
[327712965,1716355976964,643.77664,0.000129,2]
[327712966,1716355999663,1000.0,0.00012896,2]
[327712967,1716356000694,178.43260265,0.00012869,2]
[327712968,1716356009807,500.0,0.00012895,2]
[327712969,1716356010211,500.0,0.00012896,2]
[327712970,1716356011692,578.14,0.00010757,2]
[327712971,1716356035413,1169.64981347,9e-05,2]
[327712972,1716356046615,8637.46685965,0.000118,2]
[327712973,1716356067818,604.76,0.00012639,2]
[327712974,1716356071644,6936.40046193,6.94e-05,2]
[327712975,1716356075661,178.43260266,0.00012869,2]
[327712976,1716356106101,650.84221134,0.000129,2]
[327712977,1716356120354,207.62,0.00012744,2]
[327712978,1716356120565,207.62,0.00012779,2]
[327712979,1716356120799,207.62,0.00012814,2]
[327712980,1716356121017,207.62,0.00012849,2]
[327712981,1716356121221,207.62,0.00012884,2]
[327712982,1716356121470,207.62,0.00012919,2]
[327712983,1716356121892,207.62,0.00012954,2]
[327712984,1716356122102,207.62,0.00012989,2]
[327712985,1716356257225,1660.29684354,0.000129,2]
[327712986,1716356293080,2496.7288429,0.00012991,2]
[327712987,1716356304457,426.47,0.00012724,2]
[327712988,1716356318299,165.2560038,0.00012991,2]
[327712989,1716356382303,582.84700063,0.00012999,2]
[327712990,1716356382995,377.88213118,0.00012999,2]
[327712991,1716356387413,447.03159123,0.00012999,2]
[327712992,1716356388734,283.19910493,0.00012999,2]
[327712993,1716356390748,1392.68135622,0.00012999,2]
[327712994,1716356392052,924.23374784,0.00012999,2]
[327712995,1716356397845,163.76,0.0001265,2]
[327712996,1716356398047,500.0,0.0001265,2]
[327712997,1716356401110,426.5884782,0.00012991,2]
[327712998,1716356428187,178.43260266,0.00012869,2]
[327712999,1716356428323,2886.061576,0.000129,2]
[327713000,1716356435187,819.45,0.0001265,2]
[327713001,1716356446378,585.75799017,0.000129,2]
[327713002,1716356458088,200.0,0.00012686,2]
[327713003,1716356462859,1200.0163,0.000129,2]
[327713004,1716356487364,500.0,0.000129,2]
[327713005,1716356493762,250.0,0.00012708,2]
[327713006,1716356494459,549.23,0.0001079,2]
[327713007,1716356538052,5073.1513,0.000129,2]
[327713008,1716356543305,516.19,0.00012686,2]
[327713009,1716356604077,1000.0,0.000129,2]
[327713010,1716356674897,155.71,0.00012807,2]
[327713011,1716356675106,155.71,0.00012851,2]
[327713012,1716356675334,155.71,0.00012896,2]
[327713013,1716356675572,155.71,0.0001294,2]
[327713014,1716356676008,155.71,0.00012985,2]
[327713015,1716356697321,150.0,0.00012955,2]
[327713016,1716356706041,150.0,0.00012986,2]
[327713017,1716356717053,178.43260267,0.00012869,2]
[327713018,1716356723102,2152.5678241,0.00012991,2]
[327713020,1716356747458,1494.26715924,0.000129,2]
[327713021,1716356750258,339.2466832,0.00012991,2]
[327713022,1716356756025,150.0,0.00012746,2]
[327713023,1716356756089,150.0,0.00012754,2]
[327713024,1716356756137,150.0,0.00012803,2]
[327713025,1716356756188,150.0,0.00012756,2]
[327713026,1716356756244,150.0,0.00012727,2]
[327713027,1716356771607,1243.92,0.00012752,2]
[327713028,1716356786733,527.18219118,0.000129,2]
[327713029,1716356822191,1000.0,0.0001297,2]
[327713030,1716356839321,-954.81216269,0.00013,2]
[327713031,1716356852222,167.75,0.00012728,2]
[327713032,1716356853181,-464.21447833,0.00013,2]
[327713033,1716356886377,237.460546,0.00012991,2]
[327713034,1716356924446,186.62,0.00012706,2]
[327713044,1716357031670,-1935.23226309,0.00013,2]
[327713045,1716357031682,-45386.25,0.00013,2]
[327713046,1716357031832,-6163.61485596,0.00013,2]
[327713047,1716357031844,-484.55762474,0.00013,2]
[327713048,1716357031855,-262.84403547,0.00013,2]
[327713049,1716357031969,-474.37904849,0.00013,2]
[327713050,1716357031980,-1026.39824093,0.00013,2]
[327713051,1716357031991,-288.85534492,0.00013,2]
[327713052,1716357032002,-493.36047548,0.00013,2]
[327713053,1716357032100,-25091.32799906,0.00013,2]
[327713068,1716357037745,-6984.19999999,0.00013,2]
[327713080,1716357037882,-437.70943335,0.00013,2]
[327713081,1716357037894,-363.07044995,0.00013,2]
[327713082,1716357037906,-3342.04539638,0.00013,2]
[327713083,1716357037917,-3032.0,0.00013,2]
[327713084,1716357038028,-69896.0,0.00013,2]
[327713085,1716357038041,-21318.6,0.00013,2]
[327713092,1716357040039,-1805.2443034,0.00013,2]
[327713093,1716357040051,-1708.60801255,0.00013,2]
[327713094,1716357040066,-3339.87943909,0.00013,2]
[327713095,1716357040160,250.0,0.00012706,2]
[327713096,1716357040199,-830.64391533,0.00013,2]
[327713097,1716357040212,-492.61339342,0.00013,2]
[327713098,1716357040223,-3000.0,0.00013,2]
[327713099,1716357040234,-916.44956247,0.00013,2]
[327713100,1716357040246,-987.49152632,0.00013,2]
[327713101,1716357040257,-506.66007523,0.00013,2]
[327713102,1716357040268,-5016.97080723,0.00013,2]
[327713103,1716357040280,-275.950685,0.00013,2]
[327713104,1716357040291,-376.22755009,0.00013,2]
[327713105,1716357040302,-1092.95271335,0.00013,2]
[327713106,1716357040316,-40368.99158763,0.00013,2]
[327713116,1716357042742,-2421.76924529,0.00013,2]
[327713117,1716357042754,-4330.59626476,0.00013,2]
[327713118,1716357043068,-976.920342,0.00013,2]
[327713119,1716357043081,-383.48999995,0.00013,2]
[327713120,1716357043094,-863.04239845,0.00013,2]
[327713121,1716357043115,-1487.23232148,0.00013,2]
[327713122,1716357043130,-547.46957672,0.00013,2]
[327713123,1716357043143,-4040.30242813,0.00013,2]
[327713124,1716357043156,-6044.26541024,0.00013,2]
[327713126,1716357043179,-94040.00000025,0.00013,2]
[327713130,1716357045731,-489.236,0.00013,2]
[327713131,1716357053288,150.0,0.00012878,2]
[327713132,1716357053412,150.0,0.00012932,2]
[327713133,1716357053460,150.0,0.00012956,2]
[327713134,1716357053516,150.0,0.00012924,2]
[327713135,1716357055699,1080.67189986,0.00012999,2]
[327713136,1716357056487,587.04,0.00012689,2]
[327713137,1716357058352,1298.18587077,0.00012349,2]
[327713138,1716357059865,3796.01035098,0.00012999,2]
[327713139,1716357059908,158.48820191,0.00012999,2]
[327713140,1716357059952,2042.63942118,0.00012999,2]
[327713141,1716357059993,702.54074433,0.00012999,2]
[327713142,1716357061353,155.1664139,0.00012706,2]
[327713143,1716357061757,818.24848489,0.00012999,2]
[327713144,1716357062495,5817.52029764,0.00012999,2]
[327713145,1716357065385,9893.56213903,0.00012999,2]
[327713146,1716357066083,800.0,0.00012986,2]
[327713147,1716357068272,2248.87101333,0.00012999,2]
[327713148,1716357074918,798.722391,0.00012991,2]
[327713149,1716357083960,367.4345297,0.00012999,2]
[327713150,1716357095084,195.09043467,0.00012999,2]
[327713151,1716357104530,5068.0056851,0.00012991,2]
[327713152,1716357111001,159.61139068,0.00012999,2]
[327713153,1716357126959,474.46397208,0.000129,2]
[327713154,1716357140944,5000.0,0.0003,30]
[327713155,1716357142456,312.26540282,0.000129,2]
[327713156,1716357165335,533.76,0.0001081,2]
[327713157,1716357165377,178.03184864,0.000129,2]
[327713158,1716357187610,208.70509578,0.000129,2]
[327713159,1716357196569,1000.0,0.00012896,2]
[327713160,1716357202527,155.71,0.00012784,2]
[327713161,1716357202918,155.71,0.00012851,2]
[327713162,1716357202962,155.71,0.00012917,2]
[327713163,1716357203255,155.71,0.00012984,2]
[327713164,1716357206370,500.0,0.00012896,2]
[327713172,1716357227955,2000.0,0.00012773,3]
[327713173,1716357236245,209.8359691,0.00012991,2]
[327713174,1716357237905,1375.41224574,0.000129,2]
[327713175,1716357258004,312.26540282,0.000129,2]
[327713176,1716357285868,1345.14,0.00012756,2]
[327713177,1716357347555,157.052215,0.0003,30]
[327713178,1716357357136,5664.5420019,0.0001299,2]
[327713179,1716357359768,1568.21751567,0.000129,2]
[327713180,1716357405279,157.052215,0.0003,30]
[327713181,1716357425863,375.7496263,0.00012991,2]
[327713182,1716357429093,269.64,0.000128,2]
[327713183,1716357452122,4594.79964,0.00012991,2]
[327713184,1716357467280,427.0175748,0.000129,2]
[327713185,1716357493631,1045.47834378,0.000129,2]
[327713186,1716357503247,2907.41,0.00012838,2]
[327713187,1716357521151,250.0,0.00012,2]
[327713188,1716357560774,934.81,0.00012853,2]
[327713189,1716357628847,696.98556252,0.000129,2]
[327713190,1716357680469,500.0,0.00029999,31]
[327713191,1716357684806,155.71,0.0001209,2]
[327713192,1716357685037,155.71,0.00012195,2]
[327713193,1716357685251,155.71,0.000123,2]
[327713194,1716357685466,155.71,0.00012405,2]
[327713195,1716357685682,155.71,0.0001251,2]
[327713196,1716357685908,155.71,0.00012615,2]
[327713197,1716357686160,155.71,0.0001272,2]
[327713198,1716357690584,507.07,0.00011274,2]
[327713199,1716357717536,158.43787398,0.000129,2]
[327713200,1716357725522,1498.45,0.0003,30]
[327713201,1716357728124,1237.87102113,0.000129,2]
[327713203,1716357764026,464.65704168,0.000129,2]
[327713204,1716357783810,2645.55644474,0.000129,2]
[327713205,1716357794264,896.42,0.0001299,2]
[327713206,1716357803416,162.9111268,0.00012991,2]
[327713207,1716357807490,384.31581732,0.000129,2]
[327713208,1716357830176,1618.384182,0.00012991,2]
[327713210,1716357895431,7757.5416833,0.00029999,30]
[327713211,1716357900015,309.77136112,0.000129,2]
[327713212,1716357911957,313.1246886,0.00012991,2]
[327713213,1716358025181,-736.58863548,0.00013,2]
[327713214,1716358026110,-3379.92699667,0.00013,2]
[327713215,1716358026211,-5509.91955524,0.00013,2]
[327713216,1716358035248,206.51424074,0.000129,2]
[327713217,1716358041115,-2636.85420515,0.00013,2]
[327713219,1716358147723,345.88423566,0.000129,2]
[327713220,1716358155235,814.5556342,0.00012991,2]
[327713223,1716358184278,2097.1561692,0.00012991,2]
[327713226,1716358218326,1114.08391899,0.000129,2]
[327713237,1716358232144,-624.91528117,0.00013,2]
[327713238,1716358232155,-24954.83073575,0.00013,2]
[327713239,1716358232166,-7353.0,0.00013,2]
[327713240,1716358232177,-938.21279485,0.00013,2]
[327713241,1716358232188,-1185.84379656,0.00013,2]
[327713242,1716358232324,-776.61022031,0.00013,2]
[327713243,1716358232742,-322.91174239,0.00013,2]
[327713244,1716358232755,-451.92492773,0.00013,2]
[327713245,1716358232768,-28701.4958251,0.00013,2]
[327713246,1716358232780,-4574.59801111,0.00013,2]
[327713247,1716358232920,-268560.22223251,0.00013,2]
[327713285,1716358238142,-273.4598496,0.00013,2]
[327713288,1716358238154,-303.68462179,0.00013,2]
[327713296,1716358238317,-1003.64989593,0.00013,2]
[327713298,1716358238328,-1235.9041344,0.00013,2]
[327713337,1716358240274,-1372.44874178,0.00013,2]
[327713338,1716358240287,-540.39,0.00013,2]
[327713358,1716358240478,-2192.32605326,0.00013,2]
[327713360,1716358240491,-2560.0,0.00013,2]
[327713378,1716358240674,-897.90496872,0.00013,2]
[327713656,1716358243142,-1332.53376667,0.00013,2]
[327713658,1716358243153,-256.24540598,0.00013,2]
[327713659,1716358243164,-3590.53361672,0.00013,2]
[327713661,1716358243175,-1379.51146587,0.00013,2]
[327713663,1716358243186,-1241.51757032,0.00013,2]
[327713665,1716358243197,-474.58204928,0.00013,2]
[327713708,1716358243557,-847.27182393,0.00013,2]
[327713710,1716358243569,-619.10457442,0.00013,2]
[327713712,1716358243580,-1989.5583204,0.00013,2]
[327713719,1716358243875,157.69210687,0.00012999,2]
[327713744,1716358245984,-17335.5508062,0.00013,2]
[327713749,1716358246225,-265.60060127,0.00013,2]
[327713750,1716358246237,-489.06,0.00013,2]
[327713751,1716358246249,-604089.2305255,0.00013,2]
[327713752,1716358246432,-490.83084189,0.00013,2]
[327713755,1716358246444,-1838.86160494,0.00013,2]
[327713756,1716358246552,11404.4254811,0.000129,2]
[327713757,1716358254098,-212.53449412,0.000129,2]
[327713758,1716358254665,-150.0,0.000129,2]
[327713759,1716358257634,-150.0,0.000129,2]
[327713760,1716358262342,150.0,0.00011698,2]
[327713761,1716358262366,601.08630273,0.00011698,2]
[327713762,1716358273001,511.53,0.00010797,2]
[327713763,1716358277167,157.052215,0.0003,30]
[327713764,1716358316961,157.052215,0.0003,30]
[327713765,1716358342442,211133.01086738,0.000298,30]
[327713766,1716358371242,157.052215,0.0003,30]
[327713767,1716358379757,10000.0,0.00029999,30]
[327713768,1716358382009,157.052215,0.0003,30]
[327713769,1716358443983,157.052215,0.0003,30]
[327713771,1716358493026,157.052215,0.0003,30]
[327713772,1716358494036,157.052215,0.0003,30]
[327713773,1716358494885,157.052215,0.0003,30]
[327713774,1716358495890,157.052215,0.0003,30]
[327713775,1716358496785,157.052215,0.0003,30]
[327713776,1716358497660,157.052215,0.0003,30]
[327713777,1716358499864,157.052215,0.0003,30]
[327713781,1716358571951,2423.17,0.00012,2]
[327713782,1716358600786,162.79,0.00031,120]
[327713783,1716358632645,553.7,0.00011946,2]
[327713784,1716358660418,1381.09,0.00011916,2]
[327713785,1716358666775,295.052215,0.0003,30]
[327713786,1716358704779,165.91,0.0001166,2]
[327713787,1716358733492,577.48,0.00011823,2]
[327713788,1716358765355,1206.27604473,8.745e-05,2]
[327713789,1716358767300,155.0,0.00011999,2]
[327713790,1716358783262,2547.86451751,8.745e-05,2]
[327713791,1716358801265,2547.86451751,8.745e-05,2]
[327713792,1716358803226,292.40415811,0.0001166,2]
[327713793,1716358804112,-150.0,0.00012,2]
[327713794,1716358804268,-150.0,0.00012,2]
[327713795,1716358804335,-64.3773585,0.00012,2]
[327713796,1716358811884,289.27687605,8.745e-05,2]
[327713797,1716358816240,150.0,8.745e-05,2]
[327713798,1716358816262,150.0,8.745e-05,2]
[327713799,1716358816284,150.0,8.745e-05,2]
[327713800,1716358816311,150.0,8.745e-05,2]
[327713801,1716358816333,150.0,8.745e-05,2]
[327713802,1716358816354,150.0,8.745e-05,2]
[327713803,1716358816375,119.03341063,8.745e-05,2]
[327713804,1716358817270,30.96658937,6.559e-05,2]
[327713805,1716358817291,150.0,6.559e-05,2]
[327713806,1716358817311,150.0,6.559e-05,2]
[327713807,1716358817332,150.0,6.559e-05,2]
[327713808,1716358817352,150.0,6.559e-05,2]
[327713809,1716358817374,150.0,6.559e-05,2]
[327713810,1716358817394,150.0,6.559e-05,2]
[327713811,1716358817414,3.01053412,6.559e-05,2]
[327713812,1716358818720,146.98946588,8.745e-05,2]
[327713813,1716358818742,8.01053412,8.745e-05,2]
[327713814,1716358827201,150.0,8.745e-05,2]
[327713815,1716358827224,118.73546514,8.745e-05,2]
[327713816,1716358828529,31.26453486,8.308e-05,2]
[327713817,1716358828550,150.0,8.308e-05,2]
[327713818,1716358828572,150.0,8.308e-05,2]
[327713819,1716358828595,150.0,8.308e-05,2]
[327713820,1716358828618,106.11668176,8.308e-05,2]
[327713821,1716358831861,265.85619936,8.745e-05,2]
[327713822,1716358837271,150.0,6.559e-05,2]
[327713823,1716358837293,150.0,6.559e-05,2]
[327713824,1716358837313,150.0,6.559e-05,2]
[327713825,1716358837335,150.0,6.559e-05,2]
[327713826,1716358837356,150.0,6.559e-05,2]
[327713827,1716358837376,150.0,6.559e-05,2]
[327713828,1716358837399,150.0,6.559e-05,2]
[327713829,1716358837420,150.0,6.559e-05,2]
[327713830,1716358837441,150.0,6.559e-05,2]
[327713831,1716358837462,130.77838239,6.559e-05,2]
[327713832,1716358851741,19.22161761,8.745e-05,2]
[327713833,1716358851763,154.3248978,8.745e-05,2]
[327713834,1716358852151,96.0260337,9.932e-05,2]
[327713835,1716358852172,411.5339663,9.932e-05,2]
[327713836,1716358865635,150.0,0.00011574,2]
[327713837,1716358865661,150.0,0.00011574,2]
[327713838,1716358865682,150.0,0.00011574,2]
[327713839,1716358865703,150.0,0.00011574,2]
[327713840,1716358865724,150.0,0.00011574,2]
[327713841,1716358865745,150.0,0.00011574,2]
[327713842,1716358865767,65.21,0.00011574,2]
[327713843,1716358869750,173.47523227,6.559e-05,2]
[327713844,1716358870209,1350.0,6.559e-05,2]
[327713845,1716358872522,150.0,6.231e-05,2]
[327713846,1716358872545,150.0,6.231e-05,2]
[327713847,1716358872567,150.0,6.231e-05,2]
[327713848,1716358872589,150.0,6.231e-05,2]
[327713849,1716358872610,150.0,6.231e-05,2]
[327713850,1716358872630,150.0,6.231e-05,2]
[327713851,1716358880040,150.0,0.00011839,2]
[327713852,1716358959489,234.79,0.00012,2]
[327713853,1716358991693,1867.88,0.00011902,2]
[327713854,1716358991785,2993.57,0.00011755,2]
[327713855,1716359075911,4000.0,0.00011853,2]
[327713856,1716359108309,655.76,0.00011793,2]
[327713857,1716359119915,2057.95,0.00011793,2]
[327713858,1716359189511,250.0,0.00011823,2]
[327713859,1716359233351,-1789.74382833,0.00012001,2]
[327713860,1716359233373,-829.22279519,0.00012002,2]
[327713861,1716359233395,-150.0,0.00012079,2]
[327713862,1716359233416,-564.58678251,0.0001208,2]
[327713863,1716359255749,-790.66171964,0.0001208,2]
[327713864,1716359324558,1000.0,0.00011173,2]
[327713865,1716359383391,482.18,9.965e-05,2]
[327713866,1716359397535,643.14,0.00011853,2]
[327713871,1716359432616,-672.34999002,0.00012079,2]
[327713872,1716359432627,-336543.45387695,0.00012079,2]
[327713873,1716359432637,-2025.59405055,0.00012079,2]
[327713874,1716359432648,-2796.90567683,0.00012079,2]
[327713875,1716359432661,-59715.8271582,0.00012079,2]
[327713882,1716359439395,-1478.26174416,0.00012079,2]
[327713883,1716359439406,-9316.79190235,0.00012079,2]
[327713884,1716359439469,-2298.34491096,0.00012079,2]
[327713885,1716359439482,-175546.04754698,0.00012079,2]
[327713886,1716359439492,-40456.59092355,0.0001208,2]
[327713887,1716359439501,-167.63,0.00012106,2]
[327713888,1716359439511,-9999.99,0.00012125,2]
[327713889,1716359439521,-163.62,0.00012129,2]
[327713890,1716359439530,-163.8,0.00012129,2]
[327713891,1716359439540,-46671.01,0.00012129,2]
[327713892,1716359439550,-299.99,0.00012196,2]
[327713893,1716359439560,-2105.7,0.00012218,2]
[327713894,1716359439569,-150.99,0.00012218,2]
[327713895,1716359439579,-482.18,0.00012229,2]
[327713896,1716359439589,-176.95,0.0001235,2]
[327713897,1716359439600,-46321.632,0.00012441,2]
[327713898,1716359439609,-722.6,0.00012441,2]
[327713899,1716359439619,-1338.71,0.00012441,2]
[327713900,1716359439629,-1663.69,0.00012441,2]
[327713901,1716359439638,-999.99,0.00012441,2]
[327713902,1716359439648,-1164.18,0.00012441,2]
[327713903,1716359439658,-1752.32,0.00012441,4]
[327713904,1716359439669,-150.99,0.00012441,2]
[327713905,1716359439678,-2906.39,0.00012441,2]
[327713906,1716359439688,-9999.99,0.00012441,2]
[327713907,1716359439698,-870.02,0.000125,2]
[327713908,1716359439708,-415.7,0.000125,2]
[327713909,1716359439718,-870.02,0.000125,2]
[327713910,1716359439729,-415.7,0.000125,2]
[327713911,1716359439740,-870.02,0.000125,2]
[327713912,1716359439750,-415.7,0.000125,2]
[327713913,1716359439759,-870.02,0.000125,2]
[327713914,1716359439768,-366.39,0.000125,2]
[327713915,1716359439778,-150.99,0.000125,2]
[327713916,1716359439788,-499.99,0.000125,2]
[327713917,1716359439797,-1113.42,0.000125,2]
[327713918,1716359439808,-3007.87,0.000125,2]
[327713919,1716359439818,-420.93,0.000125,2]
[327713920,1716359439828,-415.7,0.000125,2]
[327713921,1716359439837,-150.0,0.000125,2]
[327713922,1716359439847,-150.0,0.000125,2]
[327713923,1716359439857,-524.28,0.000125,2]
[327713924,1716359439867,-351.98,0.000125,2]
[327713925,1716359439877,-870.02,0.000125,2]
[327713926,1716359439887,-524.28,0.000125,2]
[327713927,1716359439897,-150.0,0.000125,2]
[327713928,1716359439907,-150.0,0.000125,2]
[327713929,1716359439920,-351.98,0.000125,2]
[327713930,1716359439930,-415.7,0.000125,2]
[327713931,1716359439940,-420.93,0.000125,2]
[327713932,1716359439951,-870.02,0.000125,2]
[327713933,1716359439961,-524.28,0.000125,2]
[327713934,1716359439971,-870.02,0.000125,2]
[327713935,1716359439982,-415.7,0.000125,2]
[327713936,1716359439992,-420.93,0.000125,2]
[327713937,1716359440003,-150.0,0.000125,2]
[327713938,1716359440013,-351.98,0.000125,2]
[327713939,1716359440024,-1000.0,0.0001257,2]
[327713940,1716359440034,-841.46,0.00012578,2]
[327713941,1716359440045,-524.28,0.00012578,2]
[327713942,1716359440054,-157.43,0.00012578,2]
[327713943,1716359440065,-420.93,0.00012578,2]
[327713944,1716359440075,-524.28,0.00012578,2]
[327713945,1716359440084,-326.83,0.00012578,2]
[327713946,1716359440095,-150.0,0.00012578,2]
[327713947,1716359440105,-150.0,0.00012578,2]
[327713948,1716359440115,-162.7,0.00012578,2]
[327713949,1716359440125,-524.28,0.00012578,2]
[327713950,1716359440135,-150.0,0.00012578,2]
[327713951,1716359440148,-703.6,0.00012578,2]
[327713952,1716359440159,-545.63,0.000126,2]
[327713953,1716359440171,-153.27,0.000126,2]
[327713954,1716359440180,-870.02,0.000126,2]
[327713955,1716359440191,-175.13,0.000126,2]
[327713956,1716359440201,-447.58,0.000126,2]
[327713957,1716359440210,-331.96,0.000126,2]
[327713958,1716359440220,-850.33,0.000126,2]
[327713959,1716359440232,-448.5,0.000126,2]
[327713960,1716359440241,-274.81,0.000126,2]
[327713961,1716359440252,-420.93,0.000126,2]
[327713962,1716359440262,-235.13,0.000126,2]
[327713963,1716359440272,-157.34,0.000126,2]
[327713964,1716359440282,-524.28,0.000126,2]
[327713965,1716359440292,-150.0,0.000126,2]
[327713966,1716359440301,-870.02,0.000126,2]
[327713967,1716359440311,-163.54,0.000126,2]
[327713968,1716359440321,-150.0,0.000126,2]
[327713969,1716359440332,-150.0,0.000126,2]
[327713970,1716359440342,-524.28,0.000126,2]
[327713971,1716359440351,-150.0,0.000126,2]
[327713972,1716359440361,-420.93,0.000126,2]
[327713973,1716359440371,-300.0,0.000126,2]
[327713974,1716359440381,-300.0,0.000126,2]
[327713975,1716359440390,-351.98,0.000126,2]
[327713976,1716359440399,-326.96,0.000126,2]
[327713977,1716359440409,-150.0,0.000126,2]
[327713978,1716359440420,-150.0,0.000126,2]
[327713979,1716359440430,-150.0,0.000126,2]
[327713980,1716359440440,-150.0,0.000126,2]
[327713981,1716359440450,-415.7,0.000126,2]
[327713982,1716359440460,-351.98,0.000126,2]
[327713983,1716359440470,-415.7,0.000126,2]
[327713984,1716359440480,-150.0,0.000126,2]
[327713985,1716359440489,-351.98,0.000126,2]
[327713986,1716359440499,-524.28,0.000126,2]
[327713987,1716359440509,-415.7,0.000126,2]
[327713988,1716359440519,-150.0,0.000126,2]
[327713989,1716359440531,-870.02,0.000126,2]
[327713990,1716359440541,-151.51,0.00012652,2]
[327713991,1716359440551,-415.7,0.000128,2]
[327713992,1716359440561,-870.02,0.000128,2]
[327713993,1716359440572,-415.7,0.000128,2]
[327713994,1716359440581,-870.02,0.000128,2]
[327713995,1716359440591,-11375.64113835,0.000128,2]
[327713996,1716359440601,-168.96300013,0.000128,2]
[327713997,1716359440611,-2471.45480371,0.000128,2]
[327713998,1716359440620,-311.29581204,0.00012889,2]
[327713999,1716359440630,-500.0,0.00012896,2]
[327714000,1716359440640,-200.8607578,0.00012897,2]
[327714001,1716359440650,-365.24304735,0.00012897,2]
[327714002,1716359440660,-1017.96142833,0.00012898,2]
[327714003,1716359440669,-16883.45142478,0.000129,2]
[327714004,1716359440679,-210186.8399,0.000129,2]
[327714005,1716359440688,-1018.2367,0.000129,2]
[327714006,1716359440698,-5079.1728,0.000129,2]
[327714007,1716359440707,-415.7,0.000129,2]
[327714008,1716359440717,-285.63,0.000129,2]
[327714009,1716359440726,-524.28,0.000129,2]
[327714010,1716359440736,-870.02,0.000129,2]
[327714011,1716359440746,-159.33145615,0.000129,2]
[327714012,1716359440755,-159.33145613,0.000129,2]
[327714013,1716359440765,-159.33145613,0.000129,2]
[327714014,1716359440776,-159.33145613,0.000129,2]
[327714015,1716359440786,-97029.53733303,0.00012986,2]
[327714016,1716359440800,-2645.24185808,0.00012986,2]
[327714017,1716359440961,-2103.6861044,0.00012986,2]
[327714018,1716359440973,-3500.84712912,0.00012986,2]
[327714019,1716359440985,-3599.15287088,0.00012986,2]
[327714020,1716359440997,-580.76486239,0.00012986,2]
[327714021,1716359441009,-3364.15696614,0.00012986,2]
[327714022,1716359441020,-1509.61701147,0.00012986,2]
[327714023,1716359441032,-518.83306229,0.00012986,2]
[327714024,1716359441044,-3024.25214973,0.00012986,2]
[327714025,1716359441055,-892.19844599,0.00012986,2]
[327714026,1716359441067,-1256.27820342,0.00012986,2]
[327714027,1716359441362,-552.33090042,0.00012986,2]
[327714030,1716359441374,-2089.66046276,0.00012986,2]
[327714046,1716359441519,-998.89653531,0.00012986,2]
[327714048,1716359441530,-2944.99999991,0.00012986,2]